bitfinex/quotes_SOLUSD_20251009
["timestamp","ask_amount","ask_price","bid_price","bid_amount"]
[1759974934104,1.13959951,227.79,227.75,0.66]
[1759974934320,1.13959951,227.78,227.75,0.66]
[1759974936296,1.13959951,227.79,227.76,0.72]
[1759974936806,1.13959951,227.79,227.75,4.39076606]
[1759974937023,1.13959951,227.78,227.73,5.11097644]
[1759974937218,1.13959951,227.78,227.73,4.39097644]
[1759974937397,0.67,227.79,227.74,0.72]
[1759974937604,1.13959951,227.79,227.75,0.72]
[1759974938117,1.13959951,227.78,227.75,0.72]
[1759974939001,1.13959951,227.78,227.73,4.39097644]
[1759974939211,1.13959951,227.78,227.74,0.72]
[1759974940296,1.13959951,227.78,227.74,5.11090616]
[1759974941018,1.80959951,227.78,227.74,4.39090616]
[1759974941422,1.80959951,227.78,227.72,15.20503457]
[1759974941423,1.13959951,227.76,227.72,13.34543506]
[1759974941625,1.13959951,227.76,227.72,0.72]
[1759974941626,1.13959951,227.75,227.72,0.72]
[1759974942336,1.13959951,227.73,227.6,26.43]
[1759974942500,1.13959951,227.71,227.69,0.72]
[1759974942704,1.13959951,227.71,227.67,20.8]
[1759974942705,1.13959951,227.71,227.7,0.72]
[1759974943117,1.13959951,227.71,227.67,20.8]
[1759974943325,1.13959951,227.71,227.68,0.71]
[1759974943623,1.13959951,227.72,227.69,0.71]
[1759974944004,1.13959951,227.72,227.68,4.3921293]
[1759974944203,1.13959951,227.72,227.68,5.1021293]
[1759974944615,1.13959951,227.73,227.69,5.10181203]
[1759974944821,1.13959951,227.73,227.7,0.71]
[1759974945021,1.13959951,227.73,227.69,4.39181203]
[1759974945327,1.13959951,227.73,227.7,0.71]
[1759974945532,5.05065813,227.76,227.71,0.71]
[1759974945921,1.13959951,227.76,227.72,0.71]
[1759974946122,1.13959951,227.76,227.73,0.71]
[1759974946329,1.13959951,227.77,227.73,0.71]
[1759974946837,1.13959951,227.75,227.73,0.71]
[1759974947023,1.13959951,227.75,227.71,5.10151589]
[1759974947329,1.13959951,227.74,227.72,0.71]
[1759974947530,1.13959951,227.75,227.72,0.71]
[1759974948041,1.79959951,227.77,227.72,0.71]
[1759974948530,1.13959951,227.77,227.73,0.71]
[1759974948731,1.13959951,227.77,227.73,5.1011111]
[1759974950232,1.13959951,227.76,227.73,5.1011111]
[1759974951026,1.13959951,227.75,227.73,0.71]
[1759974951219,1.13959951,227.75,227.71,5.10137369]
[1759974951419,1.13959951,227.74,227.72,0.71]
[1759974952224,1.13959951,227.73,227.68,13.60271439]
[1759974952432,1.13959951,227.72,227.68,13.60271439]
[1759974952614,1.13959951,227.71,227.68,0.71]
[1759974952936,1.13959951,227.71,227.69,0.71]
[1759974953531,1.13959951,227.71,227.7,20.8]
[1759974954339,1.13959951,227.72,227.7,25.90174352]
[1759974954515,1.13959951,227.72,227.7,25.19174352]
[1759974954711,1.13959951,227.72,227.71,0.71]
[1759974954920,1.13959951,227.72,227.7,25.19174352]
[1759974955118,1.13959951,227.72,227.7,25.90174352]
[1759974955313,1.13959951,227.73,227.71,0.71]
[1759974955641,1.13959951,227.73,227.71,4.3915407]
[1759974957025,1.13959951,227.74,227.71,5.1015407]
[1759974957533,1.13959951,227.74,227.71,4.3915407]
[1759974957724,1.13959951,227.74,227.71,5.1015407]
[1759974957925,1.13959951,227.73,227.71,5.1015407]
[1759974962116,0.66,227.8,227.72,0.71]
[1759974962439,1.13959951,227.78,227.72,1.84959951]
[1759974962626,1.13959951,227.78,227.73,0.71]
[1759974963412,1.13959951,227.79,227.73,1.84959951]
[1759974963631,1.13959951,227.81,227.75,1.13959951]
[1759974963827,135.43959951,227.82,227.76,1.84959951]
[1759974964043,135.43959951,227.82,227.78,4.39020107]
[1759974964236,1.13959951,227.82,227.79,0.71]
[1759974964720,1.13959951,227.82,227.77,4.39037576]
[1759974964921,1.79959951,227.81,227.75,1.13959951]
[1759974965118,1.13959951,227.8,227.75,0.71]
[1759974966134,1.13959951,227.8,227.75,5.09077936]
[1759974966437,1.13959951,227.8,227.75,4.39077936]
[1759974966742,1.13959951,227.8,227.76,0.7]
[1759974967142,31.65,227.85,227.77,0.7]
[1759974967329,1.13959951,227.81,227.77,0.7]
[1759974967718,0.67,227.83,227.77,0.7]
[1759974967719,1.13959951,227.8,227.77,0.7]
[1759974968139,1.13959951,227.8,227.78,4.39020107]
[1759974969152,1.13959951,227.8,227.77,0.7]
[1759974969717,1.13959951,227.8,227.77,5.09031218]
[1759974970124,1.13959951,227.79,227.77,5.09031218]
[1759974970947,1.13959951,227.8,227.77,5.09031218]
[1759974972331,1.13959951,227.78,227.76,21.5]
[1759974972639,5.05963763,227.81,227.76,21.5]
[1759974972845,1.13959951,227.78,227.76,21.5]
[1759974973649,1.13959951,227.78,227.76,5.0904585]
[1759974974150,1.13959951,227.79,227.76,5.0904585]
[1759974975144,1.13959951,227.79,227.76,4.3904585]
[1759974975521,1.13959951,227.79,227.76,5.0904585]
[1759974976352,1.13959951,227.84,227.78,1.13959951]
[1759974976645,1.13959951,227.85,227.79,1.83959951]
[1759974976855,1.23959951,227.86,227.8,1.83959951]
[1759974977027,1.23959951,227.86,227.81,0.7]
[1759974977229,1.23959951,227.86,227.82,0.7]
[1759974977854,1.23959951,227.86,227.83,5.08923758]
[1759974978140,1.23959951,227.86,227.83,4.38923758]
[1759974978317,1.23959951,227.86,227.83,5.08923758]
[1759974979751,1.23959951,227.86,227.83,0.7]
[1759974980246,1.13959951,227.85,227.83,0.7]
[1759974982526,0.1,227.86,227.83,0.7]
[1759974982743,1.13959951,227.85,227.83,0.7]
[1759974987849,1.78076191,227.85,227.83,0.7]
[1759974988360,1.78076191,227.85,227.81,4.38962293]
[1759974988546,1.78076191,227.85,227.84,0.7]
[1759974988745,1.78076191,227.85,227.81,4.38962293]
[1759974989057,1.78076191,227.85,227.82,0.7]
[1759974989259,1.78076191,227.85,227.83,0.7]
[1759974990046,1.78076191,227.84,227.83,0.7]
[1759974992469,1.78076191,227.85,227.83,0.7]
[1759974993458,0.1,227.86,227.83,0.7]
[1759974993944,1.78076191,227.85,227.83,0.7]
[1759974994353,0.1,227.86,227.83,0.7]
[1759974994551,1.78076191,227.85,227.83,0.7]
[1759974996754,0.1,227.86,227.84,2.48076191]
[1759974997078,0.1,227.86,227.83,4.38921837]
[1759974997079,0.1,227.86,227.85,23.28076191]
[1759974998362,0.1,227.86,227.85,26.83639055]
[1759974998761,0.1,227.86,227.85,31.22524286]
[1759975000646,0.1,227.86,227.85,27.66961422]
[1759975003260,1e-08,227.86,227.85,38.54608943]
[1759975003754,1e-08,227.86,227.85,40.32685134]
[1759975005149,0.1,228.01,227.98,10.87647521]
[1759975005370,0.1,228.01,228.0,1.78076191]
[1759975005877,0.1,228.01,228.0,13.31723712]
[1759975006174,0.68,228.11,228.01,10.87647521]
[1759975006356,0.68,228.1,228.06,1.78076191]
[1759975006561,0.68,228.1,228.05,1.78076191]
[1759975006762,0.68,228.09,228.05,1.78076191]
[1759975007154,0.68,228.09,228.02,51.74]
[1759975007155,0.1,228.09,228.06,4.38481101]
[1759975007458,0.1,228.09,228.08,1.78076191]
[1759975007875,0.1,228.09,228.08,2.44076191]
[1759975008468,0.1,228.09,228.08,13.31723712]
[1759975009061,0.1,228.09,228.08,17.70166363]
[1759975009664,0.1,228.09,228.08,6.82518842]
[1759975009863,0.1,228.09,228.08,48.64166363]
[1759975010781,0.68,228.28,228.12,58.10647521]
[1759975010948,4.37847541,228.39,228.12,58.10647521]
[1759975010949,0.68,228.31,228.27,1.78076191]
[1759975011150,1.78076191,228.33,228.27,1.78076191]
[1759975011362,0.68,228.3,228.26,6.16159535]
[1759975011576,0.68,228.32,228.27,1.78076191]
[1759975012178,4.37809202,228.41,228.28,0.66]
[1759975012357,0.68,228.4,228.33,1.78076191]
[1759975012686,1.78076191,228.35,228.29,22.58076191]
[1759975012856,15.32211783,228.43,228.26,4.38083344]
[1759975012857,1.78076191,228.33,228.26,1.78076191]
[1759975013058,0.68,228.32,228.26,6.16163168]
[1759975013572,0.68,228.31,228.25,31.0]
[1759975013786,2.46076191,228.31,228.25,45.95197193]
[1759975013966,0.68,228.31,228.26,1.78076191]
[1759975014273,0.68,228.31,228.25,44.15121002]
[1759975014482,0.68,228.31,228.26,1.78076191]
[1759975014778,4.37912775,228.36,228.26,1.78076191]
[1759975014980,1.78076191,228.33,228.27,2.44076191]
[1759975015169,0.68,228.34,228.27,2.44076191]
[1759975015368,2.46076191,228.34,228.28,1.78076191]
[1759975015572,0.68,228.37,228.29,2.44076191]
[1759975015770,1.78076191,228.35,228.29,2.44076191]
[1759975015966,1.78076191,228.37,228.31,1.78076191]
[1759975016171,1.78076191,228.35,228.29,2.44076191]
[1759975016572,1.78076191,228.35,228.28,4.38048256]
[1759975016782,2.46076191,228.35,228.29,1.78076191]
[1759975016982,1.78076191,228.34,228.28,6.16124447]
[1759975017184,1.78076191,228.34,228.28,1.78076191]
[1759975017484,30.98,228.42,228.29,1.78076191]
[1759975017691,0.68,228.37,228.32,1.78076191]
[1759975017865,1.78076191,228.38,228.32,1.78076191]
[1759975018067,0.68,228.37,228.32,1.78076191]
[1759975018373,0.68,228.36,228.32,1.78076191]
[1759975018570,2.46076191,228.38,228.32,1.78076191]
[1759975018770,2.46076191,228.38,228.31,4.37994478]
[1759975018974,2.46076191,228.38,228.32,1.78076191]
[1759975019178,0.68,228.4,228.32,21.46]
[1759975019483,1.78076191,228.39,228.33,1.78076191]
[1759975020188,1.78076191,228.39,228.32,25.83994478]
[1759975020370,0.68,228.45,228.36,1.78076191]
[1759975020579,1.78076191,228.41,228.35,1.78076191]
[1759975020773,1.78076191,228.39,228.33,1.78076191]
[1759975020982,1.78076191,228.37,228.32,25.17979908]
[1759975021287,2.46076191,228.37,228.32,4.37976277]
[1759975021689,0.68,228.46,228.33,42.53647521]
[1759975021991,1.78076191,228.45,228.39,1.78076191]
[1759975022191,1.78076191,228.44,228.38,1.78076191]
[1759975022490,1.78076191,228.44,228.39,4.37847541]
[1759975022992,1.78076191,228.45,228.39,6.81923732]
[1759975023193,0.68,228.46,228.39,6.81923732]
[1759975023194,0.68,228.46,228.39,5.03847541]
[1759975023488,1.28076191,228.45,228.39,6.81923732]
[1759975024672,2.46076191,228.46,228.4,1.78076191]
[1759975024978,0.68,228.46,228.41,1.78076191]
[1759975025180,2.46076191,228.46,228.4,1.78076191]
[1759975025682,1.78076191,228.42,228.36,1.78076191]
[1759975025983,1.78076191,228.47,228.33,10.94897294]
[1759975025984,1.78076191,228.39,228.34,0.66]
[1759975026182,1.78076191,228.4,228.34,2.44076191]
[1759975026377,0.66,228.41,228.35,1.78076191]
[1759975026378,2.44076191,228.41,228.35,1.78076191]
[1759975026765,0.66,228.41,228.35,1.78076191]
[1759975027003,2.44076191,228.41,228.35,1.78076191]
[1759975027381,2.44076191,228.41,228.36,4.37905062]
[1759975027697,1.78076191,228.4,228.36,4.37905062]
[1759975028501,1.78076191,228.37,228.33,25.17957515]
[1759975029283,1.78076191,228.37,228.33,25.83957515]
[1759975029481,1.78076191,228.37,228.33,25.17957515]
[1759975030389,1.78076191,228.37,228.33,25.83957515]
[1759975031376,1.78076191,228.38,228.33,25.83957515]
[1759975033172,10.94356904,228.45,228.27,10.95167113]
[1759975033173,1.78076191,228.35,228.27,10.95167113]
[1759975033374,1.78076191,228.34,228.3,0.66]
[1759975033607,1.78076191,228.33,228.28,4.38058524]
[1759975033790,1.78076191,228.33,228.3,20.8]
[1759975033991,1.78076191,228.32,228.28,5.04058524]
[1759975034201,1.78076191,228.32,228.29,0.66]
[1759975034579,1.78076191,228.33,228.29,0.66]
[1759975034902,1.78076191,228.33,228.3,4.38020148]
[1759975036212,1.78076191,228.33,228.29,4.38039335]
[1759975036497,1.78076191,228.32,228.29,4.38039335]
[1759975037174,0.66,228.35,228.29,5.04039335]
[1759975037374,1.78076191,228.32,228.29,5.04039335]
[1759975037614,1.78076191,228.31,228.27,5.04072685]
[1759975038077,1.78076191,228.31,228.26,4.38096907]
[1759975038275,1.78076191,228.3,228.27,0.66]
[1759975038887,1.78076191,228.28,228.26,4.38096907]
[1759975039111,0.66,228.3,228.25,13.17121002]
[1759975039286,1.78076191,228.28,228.24,4.38117971]
[1759975039490,1.78076191,228.28,228.25,0.66]
[1759975040015,1.78076191,228.28,228.24,4.38117971]
[1759975040316,1.78076191,228.28,228.24,5.04117971]
[1759975040889,0.66,228.3,228.24,5.04117971]
[1759975041083,1.78076191,228.28,228.24,5.04117971]
[1759975041691,1.78076191,228.27,228.23,25.18153366]
[1759975041891,1.78076191,228.27,228.23,38.4892619]
[1759975042610,1.78076191,228.26,228.23,38.4892619]
[1759975042905,1.78076191,228.24,228.2,0.66]
[1759975043112,0.66,228.26,228.2,0.66]
[1759975043113,1.78076191,228.23,228.2,0.66]
[1759975043411,1.78076191,228.24,228.21,0.66]
[1759975043603,1.78076191,228.24,228.19,4.38227318]
[1759975043790,1.78076191,228.23,228.19,4.38227318]
[1759975043992,20.8,228.36,228.22,1.78076191]
[1759975044299,1.78076191,228.31,228.25,1.78076191]
[1759975044504,1.78076191,228.31,228.26,0.66]
[1759975044688,1.78076191,228.31,228.27,0.66]
[1759975045889,1.78076191,228.3,228.25,5.04114386]
[1759975046199,1.78076191,228.3,228.26,0.66]
[1759975046512,1.78076191,228.31,228.27,0.66]
[1759975047308,5.03964527,228.33,228.28,1.78076191]
[1759975047504,4.37964527,228.33,228.27,6.82148212]
[1759975047709,0.66,228.32,228.27,6.82148212]
[1759975047895,0.66,228.32,228.27,6.17569569]
[1759975050392,0.66,228.32,228.27,5.04072021]
[1759975050806,0.66,228.32,228.28,0.66]
[1759975051314,6.17487436,228.32,228.26,1.79497548]
[1759975051496,0.66,228.32,228.26,1.79497548]
[1759975051816,1.13497548,228.37,228.31,1.13497548]
[1759975052124,1.13497548,228.37,228.32,1.79497548]
[1759975052320,1.13497548,228.37,228.32,1.13497548]
[1759975052609,1.13497548,228.36,228.32,0.66]
[1759975052786,5.0389818,228.37,228.32,0.66]
[1759975053108,1.13497548,228.36,228.32,0.66]
[1759975054396,1.13497548,228.36,228.32,5.03980443]
[1759975054623,1.13497548,228.36,228.33,0.66]
[1759975054824,4.37891435,228.37,228.33,0.66]
[1759975054994,1.13497548,228.36,228.33,0.66]
[1759975055195,31.86,228.39,228.33,0.66]
[1759975055401,1.13497548,228.37,228.33,0.66]
[1759975055896,1.13497548,228.37,228.34,0.68]
[1759975056097,1.13497548,228.37,228.32,4.3797935]
[1759975056292,1.13497548,228.36,228.33,0.68]
[1759975056507,1.13497548,228.36,228.32,4.3797935]
[1759975056694,1.13497548,228.36,228.32,5.0597935]
[1759975057730,1.13497548,228.36,228.31,4.38000963]
[1759975057911,1.13497548,228.36,228.33,0.68]
[1759975059214,1.13497548,228.36,228.32,4.37963827]
[1759975059724,1.13497548,228.36,228.32,5.05963827]
[1759975060526,1.13497548,228.39,228.33,1.81497548]
[1759975060699,31.18,228.41,228.34,1.81497548]
[1759975060902,1.13497548,228.4,228.34,1.81497548]
[1759975061109,1.13497548,228.4,228.35,0.68]
[1759975061307,0.68,228.46,228.38,1.13497548]
[1759975061508,1.13497548,228.45,228.39,1.81497548]
[1759975061719,1.13497548,228.45,228.4,0.68]
[1759975061911,1.13497548,228.44,228.41,0.68]
[1759975062102,1.13497548,228.44,228.42,0.68]
[1759975062415,1.13497548,228.44,228.4,0.68]
[1759975062613,1.13497548,228.44,228.41,0.68]
[1759975062812,1.13497548,228.43,228.39,5.05847541]
[1759975063227,1.13497548,228.43,228.39,4.37847541]
[1759975063524,31.88,228.46,228.4,0.72]
[1759975063845,1.13497548,228.44,228.4,5.09826334]
[1759975064213,1.13497548,228.44,228.41,0.72]
[1759975064416,1.13497548,228.45,228.42,0.72]
[1759975065011,1.13497548,228.47,228.42,0.72]
[1759975065526,1.13497548,228.47,228.43,0.72]
[1759975065737,1.13497548,228.46,228.44,0.72]
[1759975066230,1.13497548,228.46,228.42,4.37783831]
[1759975066405,1.81497548,228.46,228.41,0.72]
[1759975066601,1.13497548,228.46,228.42,0.72]
[1759975067417,1.13497548,228.46,228.42,5.09788876]
[1759975068012,31.14,228.48,228.43,0.72]
[1759975068220,1.13497548,228.46,228.43,0.72]
[1759975068953,31.82,228.48,228.41,0.72]
[1759975069110,1.13497548,228.47,228.41,1.85497548]
[1759975069312,1.13497548,228.46,228.41,0.72]
[1759975069541,1.13497548,228.46,228.42,0.72]
[1759975069911,31.14,228.48,228.42,0.72]
[1759975070127,32.27497548,228.48,228.42,1.85497548]
[1759975070743,32.27497548,228.48,228.43,0.72]
[1759975070920,32.27497548,228.48,228.44,0.72]
[1759975071437,32.27497548,228.48,228.43,4.37769731]
[1759975071636,1.13497548,228.46,228.41,12.88884262]
[1759975071835,1.13497548,228.46,228.42,0.72]
[1759975072013,1.13497548,228.46,228.4,1.13497548]
[1759975072014,1.13497548,228.46,228.43,0.72]
[1759975072341,1.81497548,228.46,228.4,1.85497548]
[1759975072938,1.13497548,228.46,228.41,0.72]
[1759975073137,1.81497548,228.45,228.39,1.85497548]
[1759975073441,1.13497548,228.44,228.39,1.85497548]
[1759975073813,1.13497548,228.44,228.4,0.72]
[1759975074241,1.13497548,228.44,228.4,5.09826782]
[1759975074423,0.68,228.45,228.4,5.09826782]
[1759975074741,5.05698804,228.47,228.42,4.37790035]
[1759975074922,1.13497548,228.45,228.41,0.72]
[1759975075834,1.13497548,228.43,228.39,4.37847541]
[1759975076041,4.37698804,228.47,228.37,5.09884446]
[1759975076042,1.13497548,228.4,228.37,5.09884446]
[1759975076225,1.13497548,228.41,228.37,5.09884446]
[1759975076625,0.68,228.42,228.37,0.72]
[1759975076826,1.13497548,228.41,228.37,5.09883327]
[1759975077536,1.13497548,228.42,228.38,0.72]
[1759975077843,0.68,228.44,228.39,1.85497548]
[1759975077844,1.13497548,228.44,228.39,1.85497548]
[1759975078028,1.13497548,228.44,228.4,0.72]
[1759975078710,1.13497548,228.41,228.38,12.85845226]
[1759975078917,0.68,228.43,228.36,4.37905062]
[1759975079116,4.37713037,228.47,228.37,0.72]
[1759975079340,1.13497548,228.45,228.39,1.13497548]
[1759975079541,1.13497548,228.45,228.4,0.72]
[1759975079930,1.13497548,228.45,228.41,0.72]
[1759975080134,1.13497548,228.44,228.41,5.09806668]
[1759975080335,32.23497548,228.46,228.41,5.09806668]
[1759975080523,1.13497548,228.46,228.41,4.37806668]
[1759975080722,1.13497548,228.46,228.42,0.72]
[1759975082249,35.47698299,228.47,228.42,0.72]
[1759975082451,32.23497548,228.47,228.43,0.72]
[1759975082745,32.23497548,228.47,228.42,4.37788964]
[1759975082927,32.91497548,228.47,228.42,5.09788964]
[1759975083128,1.13497548,228.46,228.42,5.09788964]
[1759975083554,1.13497548,228.46,228.43,0.72]
[1759975083930,32.23497548,228.47,228.44,0.72]
[1759975084752,31.1,228.47,228.41,5.5130675]
[1759975084937,32.23497548,228.47,228.45,0.72]
[1759975085138,1.13497548,228.47,228.45,0.72]
[1759975085331,1.13497548,228.48,228.45,0.72]
[1759975085528,1.13497548,228.48,228.43,4.3776489]
[1759975085734,1.13497548,228.48,228.43,5.0776489]
[1759975087234,1.13497548,228.48,228.43,4.3776489]
[1759975087446,36.11664072,228.49,228.44,0.7]
[1759975087750,1.13497548,228.48,228.44,0.7]
[1759975088651,5.51178438,228.48,228.44,0.7]
[1759975088863,1.81497548,228.47,228.42,5.07787941]
[1759975089043,1.81497548,228.47,228.43,0.7]
[1759975089740,1.13497548,228.47,228.43,0.7]
[1759975090644,5.51205653,228.47,228.43,0.7]
[1759975091541,1.13497548,228.47,228.43,5.07770443]
[1759975092559,36.07676021,228.48,228.43,5.07770443]
[1759975092734,1.13497548,228.47,228.43,5.07770443]
[1759975094058,1.81497548,228.47,228.43,5.07770443]
[1759975095639,35.39676021,228.48,228.43,5.07770443]
[1759975095960,1.13497548,228.47,228.43,5.07770443]
[1759975096331,1.13497548,228.47,228.44,0.7]
[1759975096653,1.13497548,228.46,228.44,0.7]
[1759975097355,1.13497548,228.46,228.42,5.07790035]
[1759975097651,1.13497548,228.46,228.43,0.7]
[1759975098535,40.45466056,228.48,228.43,0.7]
[1759975098946,39.77466056,228.48,228.43,0.7]
[1759975099152,1.13497548,228.46,228.4,0.7]
[1759975099456,1.13497548,228.45,228.41,0.7]
[1759975099664,1.13497548,228.45,228.38,38.60772204]
[1759975099847,1.13497548,228.45,228.42,0.7]
[1759975101257,1.13497548,228.45,228.42,4.37785807]
[1759975101560,1.13497548,228.45,228.43,0.7]
[1759975101760,1.13497548,228.46,228.44,0.7]
[1759975101966,32.07497548,228.47,228.44,0.7]
[1759975104841,17.34386058,228.51,228.43,4.37765242]
[1759975104842,0.876,228.59,228.46,1.13497548]
[1759975105042,0.196,228.59,228.55,1.13497548]
[1759975105243,0.196,228.59,228.56,0.7]
[1759975105545,0.196,228.59,228.54,1.13497548]
[1759975105861,0.196,228.59,228.55,0.7]
[1759975106242,1.81497548,228.58,228.52,1.13497548]
[1759975106459,1.13497548,228.56,228.51,0.7]
[1759975106849,1.13497548,228.56,228.52,0.7]
[1759975108152,1.13497548,228.56,228.53,4.37579311]
[1759975108355,1.13497548,228.55,228.53,4.37579311]
[1759975108746,1.13497548,228.55,228.52,0.7]
[1759975108950,1.13497548,228.55,228.52,5.07597723]
[1759975109561,31.66,228.58,228.52,4.37597723]
[1759975109772,1.13497548,228.56,228.53,0.7]
[1759975109966,1.76974107,228.56,228.52,4.37597723]
[1759975110146,31.66,228.58,228.52,5.07597723]
[1759975110343,0.196,228.59,228.53,2.46974107]
[1759975110645,1.96574107,228.59,228.54,0.7]
[1759975110841,1.76974107,228.58,228.55,0.7]
[1759975111265,1.76974107,228.58,228.53,1.76974107]
[1759975111470,1.76974107,228.58,228.54,0.7]
[1759975111671,1.76974107,228.58,228.55,0.7]
[1759975111964,1.76974107,228.58,228.56,0.7]
[1759975112845,1.96574107,228.59,228.56,0.7]
[1759975113494,1.96574107,228.59,228.57,0.7]
[1759975113801,0.196,228.59,228.57,0.7]
[1759975114163,0.196,228.59,228.58,0.7]
[1759975114371,0.196,228.59,228.57,0.7]
[1759975114883,0.196,228.59,228.56,4.37520241]
[1759975114884,0.196,228.59,228.56,6.14494348]
[1759975115064,0.196,228.59,228.58,2.46974107]
[1759975115261,0.196,228.59,228.58,6.84457701]
[1759975118405,0.196,228.59,228.58,5.07483594]
[1759975119791,0.196,228.59,228.58,6.84457701]
[1759975121588,0.196,228.59,228.58,48.66105222]
[1759975121788,0.1,228.64,228.62,10.87647521]
[1759975122101,0.1,228.64,228.63,43.62621628]
[1759975122388,0.1,228.64,228.63,48.71009547]
[1759975123179,0.1,228.64,228.63,5.08387919]
[1759975123398,0.1,228.64,228.63,48.71009547]
[1759975126691,0.1,228.64,228.63,17.73009547]
[1759975126885,0.1,228.64,228.63,48.69009547]
[1759975127282,1.76974107,228.77,228.67,10.87647521]
[1759975127478,0.72,228.77,228.72,1.76974107]
[1759975127682,0.72,228.8,228.74,1.76974107]
[1759975127881,2.48974107,228.8,228.74,32.72974107]
[1759975128597,2.48974107,228.8,228.75,1.76974107]
[1759975128799,0.72,228.79,228.74,32.72974107]
[1759975128999,2.48974107,228.78,228.74,30.96]
[1759975129300,0.72,228.77,228.74,30.96]
[1759975129498,0.72,228.77,228.73,32.72974107]
[1759975130493,0.72,228.77,228.73,30.96]
[1759975130691,0.72,228.79,228.73,31.62]
[1759975130889,1.76974107,228.75,228.68,21.46]
[1759975131092,0.72,228.74,228.7,1.76974107]
[1759975131895,1.76974107,228.74,228.68,0.66]
[1759975132225,1.76974107,228.73,228.68,0.66]
[1759975132502,1.76974107,228.73,228.69,0.66]
[1759975133312,2.48974107,228.74,228.69,5.03267824]
[1759975134808,0.72,228.74,228.69,5.03267824]
[1759975135108,2.48974107,228.74,228.69,5.03267824]
[1759975135606,0.72,228.74,228.7,1.76974107]
[1759975136505,0.72,228.74,228.7,2.42974107]
[1759975137503,0.72,228.74,228.7,0.66]
[1759975137702,0.72,228.74,228.7,2.42974107]
[1759975138306,4.37157603,228.76,228.71,2.42974107]
[1759975138307,1.76974107,228.76,228.71,2.42974107]
[1759975138612,1.76974107,228.76,228.72,0.66]
[1759975139802,2.48974107,228.76,228.71,1.76974107]
[1759975140113,2.48974107,228.76,228.71,0.66]
[1759975140320,1.76974107,228.77,228.72,0.66]
[1759975140531,2.48974107,228.77,228.72,0.66]
[1759975141101,10.92727032,228.83,228.73,2.42974107]
[1759975141424,0.72,228.79,228.73,0.66]
[1759975141608,1.76974107,228.78,228.73,0.66]
[1759975141804,1.76974107,228.78,228.74,0.66]
[1759975142014,2.48974107,228.79,228.74,0.66]
[1759975142400,0.72,228.78,228.74,0.66]
[1759975143830,2.48974107,228.78,228.74,0.66]
[1759975143996,1.76974107,228.78,228.74,0.66]
[1759975144196,1.76974107,228.8,228.74,6.80150958]
[1759975144527,1.76974107,228.79,228.7,4.37254044]
[1759975144697,1.76974107,228.75,228.71,0.66]
[1759975144897,1.76974107,228.74,228.69,54.12974107]
[1759975145115,0.72,228.73,228.69,20.8]
[1759975145320,0.72,228.73,228.68,0.66]
[1759975145525,0.72,228.73,228.68,2.42974107]
[1759975145826,1.76974107,228.74,228.69,0.7]
[1759975146232,2.46974107,228.74,228.7,4.37254044]
[1759975147416,1.76974107,228.71,228.64,5.07368789]
[1759975147620,2.46974107,228.7,228.64,6.84342896]
[1759975147920,1.76974107,228.69,228.64,5.07368789]
[1759975148102,1.76974107,228.69,228.65,0.7]
[1759975148620,1.76974107,228.69,228.66,0.7]
[1759975149822,1.76974107,228.67,228.6,10.9358238]
[1759975150011,1.76974107,228.67,228.58,23.88799467]
[1759975150012,1.76974107,228.64,228.62,0.7]
[1759975150205,2.46974107,228.63,228.58,13.01151946]
[1759975150399,1.76974107,228.69,228.56,5.07520365]
[1759975150400,1.76974107,228.61,228.56,5.07520365]
[1759975150619,1.76974107,228.6,228.57,0.7]
[1759975150921,1.76974107,228.6,228.57,13.59556748]
[1759975151100,1.76974107,228.6,228.57,0.7]
[1759975152524,0.7,228.63,228.55,30.94]
[1759975152525,1.76974107,228.59,228.55,0.7]
[1759975153506,1.76974107,228.59,228.56,4.37521876]
[1759975153704,1.76974107,228.59,228.55,5.07537854]
[1759975153905,0.7,228.62,228.55,5.07537854]
[1759975154121,1.76974107,228.6,228.55,5.07537854]
[1759975154308,1.76974107,228.6,228.56,0.7]
[1759975154508,1.76974107,228.6,228.57,0.7]
[1759975154814,1.76974107,228.61,228.57,0.7]